{"text_format":"3","workbook":"xlsx","n_sheets":1,"sheets":["Pricing Schedule"],"not_rendered":{"images":1},"read":"whole","date_system":"1900"}

{"sheet":"Pricing Schedule","index":0,"n_rows":34,"n_cols":10,"rows_kept":34,"merged":[[2,2,3,9],[6,3,6,9],[7,3,7,9],[8,3,8,9],[11,2,11,9],[12,2,12,9],[13,2,13,9],[14,2,14,9],[18,2,21,2],[22,2,23,2],[25,2,26,2],[27,2,27,3],[30,2,33,2],[30,3,30,4],[30,5,30,6],[31,3,31,4],[31,5,31,6],[32,3,32,4],[32,5,32,6],[33,3,33,4],[33,5,33,6]]}
[]
[]
[null,null,"     Pricing Schedule"]
[]
[]
[]
[null,null,"RFQ No","18 2022 SITA RFB 1183 2022"]
[null,null,"RFB Title","APPOINTMENT OF A SERVICE PROVIDER FOR THE PROVISIONING OF ENTERPRISE ARCHITECTURE, PROJECT MANAGEMENT, APPLICATIONS DEVELOPMENT AND CHANGE MANAGEMENT SERVICES TO ENABLE THE IJS PROGRAMME DELIVERY, FOR A PERIOD OF 3 YEARS"]
[null,null,"Bidder Name "]
[]
[]
[null,null,"1. INSTRUCTION FOR COMPLETING THE PRICING SCHEDULE"]
[null,null,"(a)  Bidders must complete/enter YELLOW cells only"]
[null,null,"(b) The Estimated No. of Monthly Hours is 170 hours and must not be amended by the bidders for pricing comparison reasons."]
[null,null,"(b)  Unit and Line prices must be VAT INCLUSIVE and in South African Rand (ZAR) currency."]
[]
[]
[null,null,"Sevices","Resources Role","Quantity of Resources","Rate / Hour","Estimated No. of Monthly Hours","Monthly Cost \n(Inc. VAT)","Yearly Cost \n(Inc. VAT)","3-Year Cost \n(Inc. VAT)"]
[null,null,"Enterprise Architecture services","Enterprise Architect",1,null,170,{"$f":"E19*F19*G19","v":{"v":0,"d":"R0.00"}},{"$f":"H19*12","v":{"v":0,"d":"R0.00"}},{"$f":"I19*3","v":{"v":0,"d":"R0.00"}}]
[{"$nulls":3},"Business Architect",1,null,170,{"v":0,"d":"R0.00"},{"v":0,"d":"R0.00"},{"v":0,"d":"R0.00"}]
[{"$nulls":3},"Data Architect",1,null,170,{"v":0,"d":"R0.00"},{"v":0,"d":"R0.00"},{"v":0,"d":"R0.00"}]
[{"$nulls":3},"Technology Architect",1,null,170,{"v":0,"d":"R0.00"},{"v":0,"d":"R0.00"},{"v":0,"d":"R0.00"}]
[null,null,"Project Management services","Senior Project Manager",1,null,170,{"$f":"E23*F23*G23","v":{"v":0,"d":"R0.00"}},{"$f":"H23*12","v":{"v":0,"d":"R0.00"}},{"$f":"I23*3","v":{"v":0,"d":"R0.00"}}]
[{"$nulls":3},"Project Administrator",1,null,170,{"$f":"E24*F24*G24","v":{"v":0,"d":"R0.00"}},{"$f":"H24*12","v":{"v":0,"d":"R0.00"}},{"$f":"I24*3","v":{"v":0,"d":"R0.00"}}]
[null,null,"Application Development services","Developers",2,null,170,{"v":0,"d":"R0.00"},{"v":0,"d":"R0.00"},{"v":0,"d":"R0.00"}]
[null,null,"Change Management services","Change Manager",1,null,170,{"v":0,"d":"R0.00"},{"v":0,"d":"R0.00"},{"v":0,"d":"R0.00"}]
[{"$nulls":3},"Trainer",1,null,170,{"v":0,"d":"R0.00"},{"v":0,"d":"R0.00"},{"v":0,"d":"R0.00"}]
[null,null,"TOTAL",null,{"$f":"SUM(E19:E27)","v":10},null,null,{"$f":"SUM(H19:H27)","v":{"v":0,"d":"R0.00"}},{"$f":"SUM(I19:I27)","v":{"v":0,"d":"R0.00"}},{"v":0,"d":"R0.00"}]
[]
[]
[null,null,"I, the bidder, confirm that the price(s) and rate(s) quoted cover all the requirements as specified in the bidding documents; that the price(s) or rate(s) cover all my obligations and I accept that any mistakes regarding price(s), rate(s) or calculations will be at my own risk.\n\n[Note: First convert to PDF, then add signature]"]
[{"$nulls":3},"Name (above)",null,"Capacity"]
[]
[{"$nulls":3},"Signature (above)",null,"Date"]